fUSD/lending_fUSD_20260510
["ID","MTS","AMOUNT","RATE_DAILY","PERIOD"]
[421949780,1778364645000,-153.93,0.00040127,120]
[421949791,1778364645000,-631.62,0.0004029,60]
[421949787,1778364645000,-153.93,0.00040227,120]
[421949788,1778364645000,-8242.8439,0.00040269,2]
[421949789,1778364645000,-320.18,0.0004029,60]
[421949790,1778364645000,-261.61,0.0004029,60]
[421949792,1778364645000,-1512.29,0.0004029,60]
[421949796,1778364645000,-350.0,0.00040343,2]
[421949800,1778364645000,-775.292,0.00040404,120]
[421949798,1778364645000,-500.0,0.00040404,120]
[421949801,1778364645000,-153.93,0.00040427,120]
[421949793,1778364645000,-156.13,0.0004029,60]
[421949786,1778364645000,-405.02507696,0.00040153,120]
[421949802,1778364645000,-350.0,0.00040459,3]
[421949799,1778364645000,-500.0,0.00040404,120]
[421949795,1778364645000,-405.02507696,0.00040341,120]
[421949794,1778364645000,-153.93,0.00040327,120]
[421949810,1778364645000,-190.0,0.000406,120]
[421949809,1778364645000,-1561.0,0.00040548,30]
[421949808,1778364645000,-350.0,0.00040534,5]
[421949807,1778364645000,-405.02507696,0.0004053,120]
[421949805,1778364645000,-1604.95252402,0.00040521,2]
[421949803,1778364645000,-150.0,0.00040472,2]
[421949804,1778364645000,-350.0,0.0004052,3]
[421949750,1778364645000,-8242.843,0.00039995,2]
[421949806,1778364645000,-153.93,0.00040527,120]
[421949797,1778364645000,-154.45974034,0.00040397,3]
[421949784,1778364645000,-8242.843,0.00040132,2]
[421949811,1778364645000,-503.0,0.00040615,18]
[421949783,1778364645000,-500.0,0.0004013,120]
[421949785,1778364645000,-226.7640304,0.00040133,2]
[421949766,1778364645000,-4642.63237738,0.0004,30]
[421949757,1778364645000,-3235.21466438,0.0004,30]
[421949760,1778364645000,-4300.20446095,0.0004,30]
[421949759,1778364645000,-260.55645624,0.0004,7]
[421949758,1778364645000,-368.72865919,0.0004,3]
[421949764,1778364645000,-1584.76662836,0.0004,2]
[421949763,1778364645000,-396.10820725,0.0004,2]
[421949761,1778364645000,-822.18007593,0.0004,3]
[421949765,1778364645000,-4172.16164167,0.0004,2]
[421949762,1778364645000,-24112.34245587,0.0004,2]
[421949767,1778364645000,-325.31196372,0.0004,2]
[421949770,1778364645000,-163.87940253,0.0004,2]
[421949756,1778364645000,-179.0,0.0004,30]
[421949778,1778364645000,-352.87,0.000401,30]
[421949769,1778364645000,-319.37098981,0.0004,2]
[421949781,1778364645000,-600.0,0.0004013,21]
[421949777,1778364645000,-153.93,0.00040027,120]
[421949775,1778364645000,-609.86109287,0.0004,2]
[421949776,1778364645000,-2009.04957785,0.0004,120]
[421949782,1778364645000,-1300.0,0.0004013,21]
[421949774,1778364645000,-515.24233918,0.0004,2]
[421949768,1778364645000,-350.29098381,0.0004,3]
[421949771,1778364645000,-10851.51827095,0.0004,2]
[421949773,1778364645000,-1706.93757448,0.0004,2]
[421949779,1778364645000,-154.45974034,0.00040123,3]
[421949772,1778364645000,-206860.57219005,0.0004,120]
[421949847,1778364646000,-299.308539,0.0004095,30]
[421949845,1778364646000,-151.0,0.0004095,30]
[421949853,1778364646000,-10000.0,0.00040996,2]
[421949841,1778364646000,-154.45974034,0.00040945,3]
[421949848,1778364646000,-299.308539,0.0004095,30]
[421949843,1778364646000,-151.0,0.0004095,28]
[421949842,1778364646000,-255642.0,0.0004095,60]
[421949850,1778364646000,-299.308539,0.0004095,30]
[421949844,1778364646000,-151.0,0.0004095,30]
[421949852,1778364646000,-1300.0,0.00040952,21]
[421949846,1778364646000,-151.0,0.0004095,30]
[421949863,1778364646000,-1143.1,0.00041041,120]
[421949851,1778364646000,-600.0,0.00040952,21]
[421949854,1778364646000,-400.0,0.00040997,2]
[421949859,1778364646000,-179.0,0.00041,30]
[421949855,1778364646000,-400.0,0.00040997,2]
[421949864,1778364646000,-164.99523694,0.00041074,2]
[421949862,1778364646000,-153.93,0.00041027,120]
[421949856,1778364646000,-178.0,0.00041,30]
[421949857,1778364646000,-329.15,0.00041,17]
[421949858,1778364646000,-168.56,0.00041,5]
[421949860,1778364646000,-440.18770237,0.00041,5]
[421949861,1778364646000,-1872.0,0.00041,7]
[421949836,1778364646000,-445.7303,0.0004085,2]
[421949849,1778364646000,-299.308539,0.0004095,30]
[421949835,1778364646000,-153.93,0.00040827,120]
[421949827,1778364646000,-370.60193955,0.00040768,13]
[421949833,1778364646000,-370.60193955,0.00040768,13]
[421949813,1778364646000,-154.45974034,0.00040671,3]
[421949865,1778364646000,-151.0,0.00041092,14]
[421949814,1778364646000,-500.0,0.00040678,120]
[421949815,1778364646000,-500.0,0.00040678,120]
[421949816,1778364646000,-500.0,0.00040678,120]
[421949817,1778364646000,-500.0,0.00040678,120]
[421949818,1778364646000,-500.0,0.00040678,120]
[421949828,1778364646000,-370.60193955,0.00040768,13]
[421949823,1778364646000,-3660.01,0.0004075,120]
[421949825,1778364646000,-370.60193955,0.00040768,13]
[421949821,1778364646000,-405.02507696,0.00040718,120]
[421949831,1778364646000,-370.60193955,0.00040768,13]
[421949829,1778364646000,-370.60193955,0.00040768,13]
[421949819,1778364646000,-500.0,0.000407,2]
[421949822,1778364646000,-153.93,0.00040727,120]
[421949826,1778364646000,-370.60193955,0.00040768,13]
[421949824,1778364646000,-370.60193963,0.00040768,13]
[421949839,1778364646000,-153.93,0.00040927,120]
[421949830,1778364646000,-370.60193955,0.00040768,13]
[421949838,1778364646000,-405.02507696,0.00040907,120]
[421949834,1778364646000,-150.42,0.000408,120]
[421949840,1778364646000,-500.0,0.00040932,3]
[421949837,1778364646000,-1284.04,0.000409,7]
[421949832,1778364646000,-370.60193955,0.00040768,13]
[421949820,1778364646000,-606.24522011,0.000407,12]
[421949868,1778364646000,-500.0,0.00041095,2]
[421949812,1778364646000,-153.93,0.00040627,120]
[421949875,1778364646000,-500.0,0.00041095,2]
[421949910,1778364646000,-500.0,0.00041095,2]
[421949898,1778364646000,-200.57141061,0.00041095,2]
[421949916,1778364646000,-500.0,0.00041095,2]
[421949900,1778364646000,-500.0,0.00041095,2]
[421949914,1778364646000,-500.0,0.00041095,2]
[421949902,1778364646000,-500.0,0.00041095,2]
[421949918,1778364646000,-500.0,0.00041095,2]
[421949924,1778364646000,-500.0,0.00041095,2]
[421949921,1778364646000,-500.0,0.00041095,2]
[421949920,1778364646000,-500.0,0.00041095,2]
[421949919,1778364646000,-500.0,0.00041095,2]
[421949927,1778364646000,-174.41187752,0.00041095,2]
[421949926,1778364646000,-500.0,0.00041095,2]
[421949923,1778364646000,-500.0,0.00041095,2]
[421949922,1778364646000,-500.0,0.00041095,2]
[421949928,1778364646000,-500.0,0.00041095,2]
[421949925,1778364646000,-500.0,0.00041095,2]
[421949932,1778364646000,-506.00252698,0.00041095,2]
[421949935,1778364646000,-500.0,0.00041095,2]
[421949934,1778364646000,-500.0,0.00041095,2]
[421949930,1778364646000,-500.0,0.00041095,2]
[421949929,1778364646000,-500.0,0.00041095,2]
[421949931,1778364646000,-500.0,0.00041095,2]
[421949936,1778364646000,-500.0,0.00041095,2]
[421949877,1778364646000,-500.0,0.00041095,2]
[421949912,1778364646000,-500.0,0.00041095,2]
[421949893,1778364646000,-551.23367372,0.00041095,2]
[421949933,1778364646000,-500.0,0.00041095,2]
[421949908,1778364646000,-500.0,0.00041095,2]
[421949896,1778364646000,-500.0,0.00041095,2]
[421949867,1778364646000,-500.0,0.00041095,2]
[421949874,1778364646000,-500.0,0.00041095,2]
[421949869,1778364646000,-500.0,0.00041095,2]
[421949866,1778364646000,-151.0,0.00041092,14]
[421949872,1778364646000,-500.0,0.00041095,2]
[421949871,1778364646000,-500.0,0.00041095,2]
[421949876,1778364646000,-500.0,0.00041095,2]
[421949870,1778364646000,-500.0,0.00041095,2]
[421949878,1778364646000,-500.0,0.00041095,2]
[421949880,1778364646000,-500.0,0.00041095,2]
[421949888,1778364646000,-500.0,0.00041095,2]
[421949873,1778364646000,-500.0,0.00041095,2]
[421949886,1778364646000,-500.0,0.00041095,2]
[421949882,1778364646000,-500.0,0.00041095,2]
[421949904,1778364646000,-500.0,0.00041095,2]
[421949894,1778364646000,-500.0,0.00041095,2]
[421949887,1778364646000,-500.0,0.00041095,2]
[421949891,1778364646000,-500.0,0.00041095,2]
[421949884,1778364646000,-500.0,0.00041095,2]
[421949890,1778364646000,-500.0,0.00041095,2]
[421949889,1778364646000,-500.0,0.00041095,2]
[421949883,1778364646000,-500.0,0.00041095,2]
[421949885,1778364646000,-500.0,0.00041095,2]
[421949892,1778364646000,-500.0,0.00041095,2]
[421949906,1778364646000,-500.0,0.00041095,2]
[421949961,1778364647000,-500.0,0.00041095,2]
[421949967,1778364647000,-500.0,0.00041095,2]
[421949963,1778364647000,-500.0,0.00041095,2]
[421949962,1778364647000,-500.0,0.00041095,2]
[421949964,1778364647000,-500.0,0.00041095,2]
[421949966,1778364647000,-500.0,0.00041095,2]
[421949965,1778364647000,-500.0,0.00041095,2]
[421949968,1778364647000,-500.0,0.00041095,2]
[421949960,1778364647000,-500.0,0.00041095,2]
[421949974,1778364647000,-500.0,0.00041095,2]
[421949969,1778364647000,-500.0,0.00041095,2]
[421949971,1778364647000,-500.0,0.00041095,2]
[421949972,1778364647000,-500.0,0.00041095,2]
[421949973,1778364647000,-500.0,0.00041095,2]
[421949975,1778364647000,-500.0,0.00041095,2]
[421949980,1778364647000,-500.0,0.00041095,2]
[421949978,1778364647000,-500.0,0.00041095,2]
[421949959,1778364647000,-500.0,0.00041095,2]
[421949981,1778364647000,-500.0,0.00041095,2]
[421949970,1778364647000,-500.0,0.00041095,2]
[421949957,1778364647000,-500.0,0.00041095,2]
[421949945,1778364647000,-500.0,0.00041095,2]
[421949956,1778364647000,-500.0,0.00041095,2]
[421949977,1778364647000,-500.0,0.00041095,2]
[421949937,1778364647000,-500.0,0.00041095,2]
[421949939,1778364647000,-500.0,0.00041095,2]
[421949943,1778364647000,-500.0,0.00041095,2]
[421949942,1778364647000,-500.0,0.00041095,2]
[421949938,1778364647000,-500.0,0.00041095,2]
[421949941,1778364647000,-500.0,0.00041095,2]
[421949940,1778364647000,-500.0,0.00041095,2]
[421949944,1778364647000,-500.0,0.00041095,2]
[421949947,1778364647000,-500.0,0.00041095,2]
[421949949,1778364647000,-500.0,0.00041095,2]
[421949946,1778364647000,-500.0,0.00041095,2]
[421949948,1778364647000,-500.0,0.00041095,2]
[421949951,1778364647000,-500.0,0.00041095,2]
[421949950,1778364647000,-500.0,0.00041095,2]
[421949954,1778364647000,-500.0,0.00041095,2]
[421949952,1778364647000,-500.0,0.00041095,2]
[421949953,1778364647000,-500.0,0.00041095,2]
[421949955,1778364647000,-500.0,0.00041095,2]
[421949958,1778364647000,-500.0,0.00041095,2]
[421949976,1778364647000,-500.0,0.00041095,2]
[421949982,1778364647000,-173.39733273,0.00041095,2]
[421949984,1778364647000,-453.62808621,0.00041095,120]
[421950005,1778364647000,-151.0,0.00041096,120]
[421950008,1778364647000,-6508.40635,0.00041096,14]
[421950004,1778364647000,-6508.40635,0.00041096,14]
[421950013,1778364647000,-151.0,0.00041096,120]
[421950016,1778364647000,-151.0,0.00041096,120]
[421950011,1778364647000,-151.0,0.00041096,120]
[421950017,1778364647000,-6508.40635,0.00041096,14]
[421950010,1778364647000,-6508.40635,0.00041096,14]
[421950014,1778364647000,-6508.40635,0.00041096,14]
[421949999,1778364647000,-151.0,0.00041096,120]
[421950012,1778364647000,-6508.40635,0.00041096,14]
[421950019,1778364647000,-151.0,0.00041096,120]
[421950023,1778364647000,-2124.115976,0.00041096,120]
[421950021,1778364647000,-6508.40635,0.00041096,14]
[421950020,1778364647000,-2124.115976,0.00041096,120]
[421950026,1778364647000,-6508.40635,0.00041096,14]
[421950025,1778364647000,-6508.40635,0.00041096,14]
[421950024,1778364647000,-2124.115976,0.00041096,120]
[421950022,1778364647000,-151.0,0.00041096,120]
[421949979,1778364647000,-500.0,0.00041095,2]
[421950018,1778364647000,-295.059288,0.00041096,120]
[421950000,1778364647000,-151.0,0.00041096,120]
[421950015,1778364647000,-151.0,0.00041096,120]
[421950009,1778364647000,-151.0,0.00041096,120]
[421950006,1778364647000,-6508.40635,0.00041096,14]
[421949983,1778364647000,-405.02507696,0.00041095,120]
[421949985,1778364647000,-159.0,0.00041096,30]
[421949997,1778364647000,-151.0,0.00041096,7]
[421949986,1778364647000,-1561.0,0.00041096,120]
[421949991,1778364647000,-180.127043,0.00041096,120]
[421949987,1778364647000,-2727.0,0.00041096,30]
[421949989,1778364647000,-151.0,0.00041096,120]
[421949990,1778364647000,-151.0,0.00041096,120]
[421949996,1778364647000,-151.0,0.00041096,7]
[421949994,1778364647000,-151.0,0.00041096,7]
[421949992,1778364647000,-151.0,0.00041096,7]
[421949995,1778364647000,-151.0,0.00041096,7]
[421949993,1778364647000,-151.0,0.00041096,7]
[421950002,1778364647000,-6508.40635,0.00041096,14]
[421949998,1778364647000,-214.216042,0.00041096,7]
[421950003,1778364647000,-151.0,0.00041096,120]
[421950001,1778364647000,-151.0,0.00041096,120]
[421949988,1778364647000,-151.0,0.00041096,120]
[421950007,1778364647000,-151.0,0.00041096,120]
[421950069,1778364648000,-1252.270047,0.00041096,30]
[421950068,1778364648000,-1252.270047,0.00041096,30]
[421950072,1778364648000,-992.525097,0.00041096,120]
[421950060,1778364648000,-819.0,0.00041096,60]
[421950059,1778364648000,-819.0,0.00041096,60]
[421950055,1778364648000,-819.0,0.00041096,60]
[421950061,1778364648000,-150.0,0.00041096,120]
[421950064,1778364648000,-150.0,0.00041096,120]
[421950063,1778364648000,-150.0,0.00041096,120]
[421950078,1778364648000,-361.50787488,0.000411,120]
[421950065,1778364648000,-150.0,0.00041096,120]
[421950056,1778364648000,-819.0,0.00041096,60]
[421950077,1778364648000,-361.50787488,0.000411,120]
[421950081,1778364648000,-361.50787488,0.000411,120]
[421950076,1778364648000,-361.50787488,0.000411,120]
[421950070,1778364648000,-1252.270047,0.00041096,30]
[421950075,1778364648000,-190.0,0.000411,120]
[421950067,1778364648000,-1252.270047,0.00041096,30]
[421950074,1778364648000,-151.0,0.00041096,120]
[421950085,1778364648000,-361.50787488,0.000411,120]
[421950066,1778364648000,-155.26736171,0.00041096,120]
[421950083,1778364648000,-361.50787488,0.000411,120]
[421950090,1778364648000,-361.50787488,0.000411,120]
[421950091,1778364648000,-361.50787488,0.000411,120]
[421950079,1778364648000,-361.50787488,0.000411,120]
[421950080,1778364648000,-361.50787488,0.000411,120]
[421950058,1778364648000,-819.0,0.00041096,60]
[421950071,1778364648000,-151.0,0.00041096,30]
[421950057,1778364648000,-819.0,0.00041096,60]
[421950042,1778364648000,-1252.270047,0.00041096,30]
[421950049,1778364648000,-161.21891665,0.00041096,60]
[421950084,1778364648000,-361.50787488,0.000411,120]
[421950029,1778364648000,-2124.115976,0.00041096,120]
[421950027,1778364648000,-2124.115976,0.00041096,120]
[421950028,1778364648000,-6508.40635,0.00041096,14]
[421950031,1778364648000,-2124.115976,0.00041096,120]
[421950030,1778364648000,-2124.115976,0.00041096,120]
[421950037,1778364648000,-1252.270047,0.00041096,30]
[421950033,1778364648000,-2124.115976,0.00041096,120]
[421950039,1778364648000,-1252.270047,0.00041096,30]
[421950034,1778364648000,-2124.115976,0.00041096,120]
[421950038,1778364648000,-1252.270047,0.00041096,30]
[421950032,1778364648000,-2124.115976,0.00041096,120]
[421950040,1778364648000,-1252.270047,0.00041096,30]
[421950036,1778364648000,-2124.115976,0.00041096,120]
[421950041,1778364648000,-1252.270047,0.00041096,30]
[421950035,1778364648000,-2124.115976,0.00041096,120]
[421950052,1778364648000,-201.06,0.00041096,120]
[421950048,1778364648000,-188.920213,0.00041096,120]
[421950045,1778364648000,-992.525097,0.00041096,120]
[421950046,1778364648000,-188.920213,0.00041096,120]
[421950047,1778364648000,-992.525097,0.00041096,120]
[421950051,1778364648000,-201.06,0.00041096,120]
[421950044,1778364648000,-1252.270047,0.00041096,30]
[421950043,1778364648000,-1252.270047,0.00041096,30]
[421950054,1778364648000,-819.0,0.00041096,60]
[421950053,1778364648000,-819.0,0.00041096,60]
[421950050,1778364648000,-161.20891671,0.00041096,120]
[421950062,1778364648000,-150.0,0.00041096,120]
[421950082,1778364648000,-361.50787488,0.000411,120]
[421950073,1778364648000,-188.920213,0.00041096,120]
[421950089,1778364648000,-361.50787488,0.000411,120]
[421950126,1778364648000,-151.0,0.0004119,120]
[421950129,1778364648000,-6508.40635,0.0004119,14]
[421950130,1778364648000,-163.266789,0.0004119,120]
[421950119,1778364648000,-545624.4344449,0.0004119,2]
[421950127,1778364648000,-6508.40635,0.0004119,14]
[421950131,1778364648000,-2124.115976,0.0004119,120]
[421950123,1778364648000,-151.0,0.0004119,7]
[421950122,1778364648000,-151.0,0.0004119,7]
[421950121,1778364648000,-151.0,0.0004119,120]
[421950124,1778364648000,-151.0,0.0004119,120]
[421950128,1778364648000,-151.0,0.0004119,120]
[421950143,1778364648000,-200.0,0.00041202,120]
[421950133,1778364648000,-2124.115976,0.0004119,120]
[421950120,1778364648000,-151.0,0.0004119,120]
[421950140,1778364648000,-246.14849,0.0004119,7]
[421950138,1778364648000,-246.14849,0.0004119,7]
[421950134,1778364648000,-2124.115976,0.0004119,120]
[421950137,1778364648000,-246.14849,0.0004119,7]
[421950135,1778364648000,-2124.115976,0.0004119,120]
[421950142,1778364648000,-453.6280862,0.00041198,120]
[421950141,1778364648000,-370.60193955,0.0004119,13]
[421950139,1778364648000,-246.14849,0.0004119,7]
[421950136,1778364648000,-151.0,0.0004119,120]
[421950145,1778364648000,-3012.9464234,0.00041223,2]
[421950144,1778364648000,-154.45974034,0.00041219,3]
[421950148,1778364648000,-1000.0,0.00041248,120]
[421950146,1778364648000,-139462.3912309,0.00041223,2]
[421950087,1778364648000,-361.50787488,0.000411,120]
[421950132,1778364648000,-6508.40635,0.0004119,14]
[421950125,1778364648000,-6508.40635,0.0004119,14]
[421950147,1778364648000,-153.93,0.00041227,120]
[421950112,1778364648000,-843.51837473,0.000411,120]
[421950088,1778364648000,-361.50787488,0.000411,120]
[421950086,1778364648000,-361.50787488,0.000411,120]
[421950102,1778364648000,-843.51837473,0.000411,120]
[421950096,1778364648000,-843.51837473,0.000411,120]
[421950103,1778364648000,-843.51837473,0.000411,120]
[421950095,1778364648000,-361.5,0.000411,120]
[421950092,1778364648000,-361.50787488,0.000411,120]
[421950100,1778364648000,-843.51837473,0.000411,120]
[421950118,1778364648000,-150.42,0.0004119,120]
[421950093,1778364648000,-361.50787488,0.000411,120]
[421950097,1778364648000,-843.51837473,0.000411,120]
[421950099,1778364648000,-843.51837473,0.000411,120]
[421950094,1778364648000,-361.50787488,0.000411,120]
[421950101,1778364648000,-843.51837473,0.000411,120]
[421950098,1778364648000,-843.51837473,0.000411,120]
[421950106,1778364648000,-843.51837473,0.000411,120]
[421950104,1778364648000,-843.51837473,0.000411,120]
[421950149,1778364648000,-3733.21,0.0004125,120]
[421950108,1778364648000,-843.51837473,0.000411,120]
[421950113,1778364648000,-843.51837473,0.000411,120]
[421950107,1778364648000,-843.51837473,0.000411,120]
[421950115,1778364648000,-843.51,0.000411,120]
[421950111,1778364648000,-843.51837473,0.000411,120]
[421950109,1778364648000,-843.51837473,0.000411,120]
[421950105,1778364648000,-843.51837473,0.000411,120]
[421950116,1778364648000,-153.93,0.00041127,120]
[421950110,1778364648000,-843.51837473,0.000411,120]
[421950117,1778364648000,-150.0,0.00041133,120]
[421950114,1778364648000,-843.51837473,0.000411,120]
[421950184,1778364649000,-438.66,0.00041546,2]
[421950192,1778364649000,-121745.2674385,0.00041617,2]
[421950187,1778364649000,-150.43,0.0004158,120]
[421950191,1778364649000,-1722.94162473,0.000416,2]
[421950189,1778364649000,-152.0,0.00041595,7]
[421950183,1778364649000,-1000.0,0.00041545,120]
[421950186,1778364649000,-1198.27551,0.0004156,120]
[421950188,1778364649000,-1000.0,0.00041594,120]
[421950185,1778364649000,-1000.0,0.00041556,120]
[421950182,1778364649000,-152.0,0.00041541,7]
[421950190,1778364649000,-1000.0,0.000416,120]
[421950193,1778364649000,-500.0,0.00041621,2]
[421950211,1778364649000,-151.0,0.00041671,14]
[421950197,1778364649000,-150.0,0.00041652,120]
[421950204,1778364649000,-500.0,0.00041666,30]
[421950203,1778364649000,-161.54028521,0.00041666,4]
[421950196,1778364649000,-1000.0,0.00041645,120]
[421950194,1778364649000,-31118.26569,0.00041622,2]
[421950199,1778364649000,-1000.0,0.00041662,120]
[421950200,1778364649000,-200.0,0.00041665,15]
[421950201,1778364649000,-200.0,0.00041665,15]
[421950202,1778364649000,-200.0,0.00041665,15]
[421950198,1778364649000,-1198.27552,0.0004166,120]
[421950206,1778364649000,-161.54028521,0.00041667,4]
[421950216,1778364649000,-1537.0,0.00041674,14]
[421950178,1778364649000,-453.6280862,0.00041506,120]
[421950195,1778364649000,-153.93,0.00041627,120]
[421950177,1778364649000,-1854.99985667,0.00041506,2]
[421950158,1778364649000,-503.0,0.00041387,19]
[421950173,1778364649000,-1252.270047,0.000415,30]
[421950207,1778364649000,-411.73115657,0.00041668,2]
[421950155,1778364649000,-164.01962126,0.0004136,30]
[421950150,1778364649000,-17750.2512197,0.0004126,2]
[421950151,1778364649000,-151.0,0.000413,120]
[421950153,1778364649000,-153.93,0.00041327,120]
[421950152,1778364649000,-453.6280862,0.000413,120]
[421950154,1778364649000,-241.36707265,0.0004136,30]
[421950165,1778364649000,-1198.27551,0.0004146,120]
[421950159,1778364649000,-353.0,0.00041388,14]
[421950164,1778364649000,-1000.0,0.00041444,120]
[421950167,1778364649000,-154.45974034,0.00041493,3]
[421950163,1778364649000,-153.93,0.00041427,120]
[421950162,1778364649000,-1000.0,0.00041421,120]
[421950179,1778364649000,-1091.53624037,0.00041509,120]
[421950168,1778364649000,-188.64,0.000415,14]
[421950157,1778364649000,-1000.0,0.00041369,120]
[421950156,1778364649000,-1198.27551,0.0004136,120]
[421950160,1778364649000,-453.6280862,0.00041403,120]
[421950161,1778364649000,-3585.75,0.00041406,2]
[421950181,1778364649000,-152.0,0.00041541,7]
[421950169,1778364649000,-254228.90550488,0.000415,120]
[421950171,1778364649000,-1252.270047,0.000415,30]
[421950172,1778364649000,-1252.270047,0.000415,30]
[421950180,1778364649000,-153.93,0.00041527,120]
[421950170,1778364649000,-1252.270047,0.000415,30]
[421950174,1778364649000,-151.0,0.000415,30]
[421950175,1778364649000,-992.525097,0.000415,120]
[421950176,1778364649000,-188.920213,0.000415,120]
[421950166,1778364649000,-214.05284582,0.00041473,120]
[421950209,1778364649000,-2001.22467022,0.00041668,2]
[421950210,1778364649000,-3099.92067644,0.00041668,2]
[421950214,1778364649000,-841.0,0.00041673,7]
[421950246,1778364649000,-152.0,0.00041733,7]
[421950243,1778364649000,-6943.4236069,0.00041711,2]
[421950247,1778364649000,-152.0,0.00041733,7]
[421950245,1778364649000,-153.93,0.00041727,120]
[421950250,1778364649000,-350.0,0.00041747,4]
[421950248,1778364649000,-1000.0,0.00041738,120]
[421950252,1778364649000,-1000.0,0.0004175,120]
[421950249,1778364649000,-13888.4716186,0.00041747,2]
[421950251,1778364649000,-3807.88,0.0004175,120]
[421950254,1778364649000,-246.417626,0.00041763,66]
[421950260,1778364649000,-216.53393623,0.00041764,120]
[421950262,1778364649000,-179.02219684,0.00041764,120]
[421950263,1778364649000,-150.0,0.00041764,6]
[421950253,1778364649000,-1198.27551,0.0004176,120]
[421950261,1778364649000,-304.39705839,0.00041764,120]
[421950256,1778364649000,-150.67336317,0.00041764,120]
[421950255,1778364649000,-24286.30491817,0.00041763,7]
[421950257,1778364649000,-18756.17091854,0.00041764,30]
[421950259,1778364649000,-230.61442841,0.00041764,120]
[421950258,1778364649000,-18756.17091854,0.00041764,30]
[421950264,1778364649000,-435.49217466,0.00041764,120]
[421950265,1778364649000,-225.29487712,0.00041764,120]
[421950267,1778364649000,-211.6686259,0.00041764,120]
[421950270,1778364649000,-151.0,0.00041764,14]
[421950266,1778364649000,-392.30247129,0.00041764,120]
[421950205,1778364649000,-161.54028521,0.00041667,4]
[421950268,1778364649000,-255.0384141,0.00041764,120]
[421950244,1778364649000,-27165.0410208,0.00041712,2]
[421950242,1778364649000,-1993.91,0.00041707,2]
[421950269,1778364649000,-472.46259,0.00041764,120]
[421950237,1778364649000,-160.0,0.000417,70]
[421950240,1778364649000,-190.0,0.000417,120]
[421950208,1778364649000,-30456.77027194,0.00041668,2]
[421950212,1778364649000,-151.0,0.00041671,14]
[421950215,1778364649000,-200.0,0.00041674,7]
[421950217,1778364649000,-1537.0,0.00041674,14]
[421950220,1778364649000,-1537.0,0.00041674,14]
[421950221,1778364649000,-1169.58048992,0.00041674,14]
[421950219,1778364649000,-1537.0,0.00041674,14]
[421950226,1778364649000,-152.0,0.00041674,14]
[421950229,1778364649000,-151.0,0.00041674,14]
[421950223,1778364649000,-152.0,0.00041674,14]
[421950222,1778364649000,-152.0,0.00041674,14]
[421950218,1778364649000,-1537.0,0.00041674,14]
[421950213,1778364649000,-1000.0,0.00041673,120]
[421950228,1778364649000,-155.88401794,0.00041674,14]
[421950224,1778364649000,-152.0,0.00041674,14]
[421950233,1778364649000,-151.0,0.00041674,14]
[421950235,1778364649000,-358.9,0.00041689,2]
[421950238,1778364649000,-1258.99806499,0.000417,120]
[421950239,1778364649000,-300.0,0.000417,15]
[421950234,1778364649000,-188.08943476,0.00041674,14]
[421950236,1778364649000,-1143.1,0.00041694,120]
[421950241,1778364649000,-1000.0,0.000417,120]
[421950232,1778364649000,-151.0,0.00041674,14]
[421950231,1778364649000,-151.0,0.00041674,14]
[421950227,1778364649000,-159.1169669,0.00041674,14]